[Event "Ostravsky Konik FIDE-A 2024"]
[Site "Ostrava"]
[Date "2024.05.02"]
[Round "6.2"]
[White "Rudolf, Michal"]
[Black "Bujnoch, Radek"]
[Result "1/2-1/2"]
[ECO "C67"]
[WhiteElo "2268"]
[BlackElo "2307"]
[Annotator "TA"]
[PlyCount "65"]
[EventDate "2024.04.26"]
[EventType "swiss"]
[EventCountry "CZE"]
[SourceTitle "playchess.com"]
[Source "ChessBase"]
[SourceQuality "1"]
[TimeControl "40/5400+30:1800+30"]

{[%evp 18,65,20,14,19,-25,-16,-20,-12,-31,0,-38,8,20,10,17,16,18,19,15,19,9,9,8,16,9,11,0,14,15,14,16,12,9,14,12,14,14,16,12,22,0,0,0,17,0,6,4,6,0]} 1. e4 {[%emt 0:00:45]} e5 {[%emt 0:00:03]} 2. Nf3 {[%emt 0:00:04]} Nc6 {[%emt 0:00:05]} 3. Bb5 {[%emt 0:01:35]} Nf6 {[%emt 0:00:13]} 4. O-O {[%emt 0:00:10][%cal Bh1f1,Bf1e1,Be1e5][%mdl 32]} Nxe4 {[%emt 0:00:17]} 5. Re1 {[%emt 0:00:47]} Nd6 {[%emt 0:00:27]} 6. Nxe5 {[%emt 0:00:08]} Be7 {[%emt 0:00:13][%cal Bf8e7,Be7f6,Bf6d4][%mdl 32]} 7. Bf1 {[%emt 0:02:48]} Nxe5 {[%emt 0:00:10]} 8. Rxe5 {[%emt 0:00:09]} O-O {[%emt 0:00:09]} 9. d4 {[%emt 0:00:47]} Bf6 {[%emt 0:00:57]} 10. Re1 {[%emt 0:00:10]} Re8 {[%emt 0:01:08]} 11. Nc3 {[%emt 0:01:21]} Rxe1 {[%emt 0:00:11]} 12. Qxe1 {[%emt 0:00:04]} Bxd4 {[%emt 0:00:24]} 13. Nd5 {[%emt 0:00:18] [#] Bf4 would now be deadly.} c6 {[%emt 0:03:51]} 14. Bf4 {[%emt 0:12:26]} Ne8 {[%emt 0:00:08]} (14... Nf5 $15 15. Bc7 Qf8) 15. Ne7+ $11 {[%emt 0:01:41] The position is equal.} Kf8 {[%emt 0:00:07]} 16. Nxc8 {[%emt 0:00:24][%cal Oa1d1]} Qf6 $1 {[%emt 0:00:10] [#]} (16... Qxc8 17. Qe4 Bxf2+ 18. Kxf2 $18) 17. Rd1 $1 {[%emt 0:02:36][%cal Od1d4] aiming for Rxd4!} Rxc8 {[%emt 0:00:54]} 18. Qe4 {[%emt 0:02:39]} Bb6 {[%emt 0:10:21]} 19. Rxd7 {[%emt 0:01:52][%cal Oe4h7] Qxh7! is the strong threat.} Rd8 $1 {[%emt 0:00:09]} 20. Rxd8 {[%emt 0:02:07]} (20. Rxb7 Bxf2+ 21. Kh1 (21. Kxf2 $2 {is the wrong capture.} Nd6 $19) 21... Rd1 $17) 20... Qxd8 {[%emt 0:00:13]} 21. Be5 {[%emt 0:13:39]} Qd2 {[%emt 0:15:10]} 22. Bg3 {[%emt 0:01:05]} (22. Qe2 {simplifies} Qxe2 23. Bxe2 f5 24. g3) 22... Qd4 {[%emt 0:12:02]} 23. Qxd4 {[%emt 0:01:39]} Bxd4 {[%emt 0:00:05][%mdl 4096] Endgame. KBB-KBN} 24. c3 {[%emt 0:00:06]} Bc5 {[%emt 0:00:47]} 25. Bf4 {[%emt 0:04:02]} f5 {[%emt 0:14:24]} 26. Bd3 {[%emt 0:02:09]} g6 {[%emt 0:02:44]} 27. Kf1 {[%emt 0:01:01]} Nf6 {[%emt 0:02:41]} 28. Ke2 {[%emt 0:00:14]} Nd5 {[%emt 0:01:41]} 29. Bb8 {[%emt 0:00:17]} Ke7 {[%emt 0:00:54]} 30. g3 {[%emt 0:01:47]} Ke6 {[%emt 0:09:52]} 31. h4 {[%emt 0:08:36]} a6 {[%emt 0:03:41]} 32. Bc4 {[%emt 0:01:03]} Kf6 {[%emt 0:02:35]} 33. Bd3 {[%emt 0:38:31] An even fight not without its subleties.   Weighted Error Value: White=0.08 (flawless) /Black=0.07 (flawless) .  Mistake:       	---       	Black=1      Inaccurate:     	White=2     	Black=1      OK:         	White=12    	Black=5      Best:        	---       	Black=4      Strong:       	---       	Black=2} 1/2-1/2

[Event "Ostravsky Konik FIDE-A 2024"]
[Site "Ostrava"]
[Date "2024.05.02"]
[Round "6.3"]
[White "Jafarli, Babak"]
[Black "Zdybel, Przemyslaw"]
[Result "1/2-1/2"]
[ECO "A02"]
[WhiteElo "2187"]
[BlackElo "2264"]
[Annotator "NA RC"]
[PlyCount "88"]
[EventDate "2024.04.26"]
[EventType "swiss"]
[EventCountry "CZE"]
[SourceTitle "playchess.com"]
[Source "ChessBase"]
[SourceQuality "1"]
[TimeControl "40/5400+30:1800+30"]

1. b3 {[%emt 0:00:02]} Nf6 {[%emt 0:04:45]} 2. Bb2 {[%emt 0:00:11]} g6 {[%emt 0:01:46]} 3. f4 {[%emt 0:01:51]} Bg7 {[%emt 0:02:10]} 4. Nf3 {[%emt 0:02:58]} O-O {[%emt 0:02:53]} 5. g3 {[%emt 0:00:09]} d5 {[%emt 0:04:44]} 6. Bg2 {[%emt 0:00:54]} c5 {[%emt 0:01:34]} 7. O-O {[%emt 0:00:08]} b6 {[%emt 0:05:50]} 8. e3 {[%emt 0:07:04]} Bb7 {[%emt 0:02:11]} 9. Qe2 {[%emt 0:01:54]} Nc6 {[%emt 0:06:41]} 10. Ne5 {[%emt 0:01:46]} Nxe5 {[%emt 0:02:32]} 11. Bxe5 {[%emt 0:00:05]} Nd7 {[%emt 0:07:40]} 12. Bxg7 {[%emt 0:01:30]} Kxg7 {[%emt 0:01:57]} 13. d3 {[%emt 0:00:06]} e5 {[%emt 0:02:59]} 14. f5 {[%emt 0:00:44]} e4 {[%emt 0:08:58]} 15. dxe4 {[%emt 0:00:48]} dxe4 {[%emt 0:00:01]} 16. Nd2 {[%emt 0:04:14]} Qe7 {[%emt 0:01:00]} 17. Rad1 {[%emt 0:02:05]} Nf6 {[%emt 0:01:37]} 18. fxg6 {[%emt 0:15:17]} hxg6 {[%emt 0:00:41]} 19. Rf2 {[%emt 0:04:17]} Rad8 {[%emt 0:05:23]} 20. Rdf1 {[%emt 0:01:04]} Rd6 {[%emt 0:00:50]} 21. g4 {[%emt 0:01:05]} Re6 {[%emt 0:04:05]} 22. c4 {[%emt 0:06:33]} Qd6 {[%emt 0:02:56]} 23. Rf4 {[%emt 0:01:27]} Qe7 {[%emt 0:03:17]} 24. Nb1 {[%emt 0:05:37]} Ne8 {[%emt 0:03:19]} 25. Qe1 {[%emt 0:10:20]} Nd6 {[%emt 0:01:21]} 26. h4 {[%emt 0:02:15]} f6 {[%emt 0:07:57]} 27. Nc3 {[%emt 0:01:30]} Re5 {[%emt 0:00:50]} 28. Qg3 {[%emt 0:01:08]} g5 {[%emt 0:03:02]} 29. R4f2 {[%emt 0:01:05]} Bc6 {[%emt 0:01:41]} 30. Ne2 {[%emt 0:03:47]} Rf7 {[%emt 0:01:14]} 31. Qh3 {[%emt 0:00:16]} f5 {[%emt 0:01:49]} 32. gxf5 {[%emt 0:00:54]} Bd7 {[%emt 0:01:46]} 33. Ng3 {[%emt 0:00:08]} gxh4 {[%emt 0:01:55]} 34. Rf4 {[%emt 0:00:09]} Kf8 {[%emt 0:00:54]} 35. Rxh4 {[%emt 0:00:21]} Qg5 {[%emt 0:00:18]} 36. Rxe4 {[%emt 0:03:02]} Nxe4 {[%emt 0:01:24]} 37. Qh8+ {[%emt 0:00:03]} Qg8 {[%emt 0:00:36]} 38. Qxe5 {[%emt 0:00:07]} Qxg3 {[%emt 0:02:35]} 39. Qxe4 {[%emt 0:00:17]} Bc6 {[%emt 0:00:23]} 40. Qxc6 {[%emt 0:00:33]} Qxe3+ {[%emt 0:00:05]} 41. Rf2 {[%emt 0:31:39]} Qe1+ {[%emt 0:31:22]} 42. Bf1 {[%emt 0:00:23]} Rg7+ {[%emt 0:00:07]} 43. Rg2 {[%emt 0:00:11]} Qe3+ {[%emt 0:00:09]} 44. Kh1 {[%emt 0:00:02]} Qh3+ {[%emt 0:00:16]} 1/2-1/2

[Event "Ostravsky Konik FIDE-A 2024"]
[Site "Ostrava"]
[Date "2024.05.02"]
[Round "6.4"]
[White "Ugorek, Kacper"]
[Black "Meers, Hubert"]
[Result "0-1"]
[ECO "A87"]
[WhiteElo "2034"]
[BlackElo "2250"]
[Annotator "TA"]
[PlyCount "80"]
[EventDate "2024.04.26"]
[EventType "swiss"]
[EventCountry "CZE"]
[SourceTitle "playchess.com"]
[Source "ChessBase"]
[SourceQuality "1"]
[TimeControl "40/5400+30:1800+30"]

{[%evp 15,80,26,71,70,60,56,57,11,81,68,85,92,93,98,98,78,77,33,55,0,35,0,0,-70,-60,-73,-53,-54,-45,-57,-52,-58,-42,-70,-43,-76,-75,-123,-45,-28,-16,-143,-134,-146,-103,-195,-163,-199,-214,-290,-298,-277,-270,-765,-791,-909,-897,-958,-954,-1053,-969,-1029,-1018,-962,-927,-1241,-1195]} 1. d4 {[%emt 0:00:02]} f5 {[%emt 0:03:17]} 2. c4 {[%emt 0:00:02]} Nf6 {[%emt 0:00:06]} 3. Nf3 {[%emt 0:00:09]} g6 {[%emt 0:00:04]} 4. Nc3 {[%emt 0:00:13]} Bg7 {[%emt 0:00:04]} 5. g3 {[%emt 0:00:16]} O-O {[%emt 0:00:06]} 6. Bg2 {[%emt 0:00:10]} d6 {[%emt 0:00:04]} 7. O-O {[%emt 0:00:29]} Qe8 {[%emt 0:00:02]} 8. d5 {[%emt 0:00:54]} e5 {[%emt 0:02:29]} 9. dxe6 {[%emt 0:01:59]} Qxe6 {[%emt 0:00:14][%cal Ob8a6]} 10. Nd5 {[%emt 0:06:50]} Na6 {[%emt 0:02:49]} 11. Nd4 {[%emt 0:06:33]} (11. Rb1 $14 {feels stronger.}) 11... Qe8 {[%emt 0:04:01]} (11... Qf7 $11) 12. Nxf6+ $16 {[%emt 0:06:36]} Bxf6 {[%emt 0:05:38]} 13. Bh6 {[%emt 0:03:19]} Bg7 {[%emt 0:00:04]} 14. Bxg7 {[%emt 0:01:12]} Kxg7 {[%emt 0:00:03]} 15. Qd2 {[%emt 0:02:44][%cal Oe2e4]} Nc5 {[%emt 0:07:57]} 16. Qc3 {[%emt 0:09:58]} Qe5 {[%emt 0:01:08]} 17. Nb5 {[%emt 0:01:06]} (17. f4 $14 Qf6 18. b4) 17... c6 {[%emt 0:05:36]} 18. Qxe5+ {[%emt 0:12:22]} dxe5 {[%emt 0:00:05]} 19. Nd6 {[%emt 0:07:40]} (19. b4 $11 cxb5 20. bxc5 bxc4 21. Rac1) 19... a5 $1 $15 {[%emt 0:01:20]} 20. Nxc8 {[%emt 0:12:02]} Raxc8 {[%emt 0:03:15]} 21. Rfd1 {[%emt 0:00:33]} Rfd8 {[%emt 0:00:32]} 22. Kf1 {[%emt 0:02:07]} Kf6 {[%emt 0:00:29]} 23. Ke1 {[%emt 0:00:14]} e4 {[%emt 0:11:21]} 24. b3 {[%emt 0:04:04]} Ke5 {[%emt 0:00:36]} 25. Rab1 {[%emt 0:03:38]} g5 {[%emt 0:12:37]} 26. a3 {[%emt 0:03:38]} ({White should play} 26. Bf1) 26... a4 {[%emt 0:01:04]} (26... Rxd1+ $17 27. Kxd1 a4 28. bxa4 Ra8) 27. b4 {[%emt 0:01:48] Threatens to win with Rxd8.} Nb3 $36 {[%emt 0:02:53][%mdl 2048] Black fights for an advantage.} 28. c5 {[%emt 0:03:19] [#]} (28. e3 $11) 28... Nd4 $1 $17 {[%emt 0:02:02]} 29. Rdc1 {[%emt 0:02:23] Prevents Nc2+} f4 {[%emt 0:11:40] Black is more active.} 30. Bf1 {[%emt 0:03:43]} (30. Rc4 $17 {keeps fighting.}) 30... Nb3 {[%emt 0:08:44]} 31. Rd1 {[%emt 0:03:11] [#]} e3 $1 {[%emt 0:00:10]} 32. fxe3 {[%emt 0:00:50]} fxe3 {[%emt 0:00:03]} 33. Bh3 {[%emt 0:00:17]} Ra8 {[%emt 0:00:57]} 34. Rd3 {[%emt 0:01:07]} (34. Rd6 Rxd6 35. cxd6) 34... Rxd3 $19 {[%emt 0:01:09] Black is clearly winning.} 35. exd3 {[%emt 0:00:02][%mdl 4096] Endgame. KRB-KRN} Rf8 {[%emt 0:00:13]} 36. Rb2 {[%emt 0:01:36] Wards off Rf2} Kd4 {[%emt 0:01:19]} 37. Bf1 {[%emt 0:01:07]} Nd2 {[%emt 0:00:21]} 38. Be2 {[%emt 0:00:17]} Kc3 {[%emt 0:01:35]} 39. Ra2 {[%emt 0:00:13]} Kb3 {[%emt 0:00:52]} ({Stronger than} 39... Rf2 40. Rxd2 Rxh2 41. Rd1 $11) 40. Ra1 {[%emt 0:01:06]} Rf2 {[%emt 0:01:32] Weighted Error Value: White=0.53/Black=0.13 (very precise) .  Mistake:       	White=7     	Black=2      Inaccurate:     	White=5     	Black=2      OK:         	White=8     	Black=6      Best:        	White=3     	Black=1      Strong:       	---       	Black=3} 0-1

[Event "Ostravsky Konik FIDE-A 2024"]
[Site "Ostrava"]
[Date "2024.05.02"]
[Round "6.5"]
[White "Romanishin, Oleg M"]
[Black "Pancewicz, Szymon"]
[Result "1-0"]
[ECO "A05"]
[WhiteElo "2372"]
[BlackElo "1965"]
[Annotator "TA"]
[PlyCount "55"]
[EventDate "2024.04.26"]
[EventType "swiss"]
[EventCountry "CZE"]
[SourceTitle "playchess.com"]
[Source "ChessBase"]
[SourceQuality "1"]
[TimeControl "40/5400+30:1800+30"]

{[%evp 10,55,18,26,39,24,48,39,64,50,58,22,87,82,88,95,148,145,183,193,185,179,185,181,183,186,186,186,178,188,178,178,178,178,197,141,202,202,197,197,247,231,239,229,287,284,285,285]} 1. Nf3 {[%emt 0:00:03]} Nf6 {[%emt 0:00:14]} 2. g3 {[%emt 0:00:05]} b5 {[%emt 0:00:58]} 3. Bg2 {[%emt 0:00:10]} Bb7 {[%emt 0:00:15]} 4. O-O {[%emt 0:00:19]} e6 {[%emt 0:01:28]} 5. d3 {[%emt 0:00:12]} d5 {[%emt 0:02:30] [#]} 6. c4 $1 {[%emt 0:02:33]} bxc4 {[%emt 0:16:06]} 7. dxc4 {[%emt 0:00:25]} c5 {[%emt 0:00:55]} 8. Qb3 {[%emt 0:20:51]} Qb6 {[%emt 0:01:53] White is slightly better.} 9. Nc3 {[%emt 0:01:22]} (9. Ne5 {is more complex.} Bd6 10. Bf4 Ke7 11. Nc3) 9... Nbd7 {[%emt 0:05:50]} 10. Bf4 {[%emt 0:08:49]} Be7 {[%emt 0:02:40]} (10... dxc4 $1 $11 11. Qxb6 (11. Qxc4 Be7 $14) 11... Nxb6) 11. Ne5 $16 {[%emt 0:00:44] White is more active.} Qxb3 {[%emt 0:19:37]} 12. axb3 {[%emt 0:00:09]} g5 {[%emt 0:00:02]} 13. Nxd7 {[%emt 0:01:26]} gxf4 {[%emt 0:01:47]} 14. Nxf6+ {[%emt 0:01:16]} Bxf6 {[%emt 0:00:10]} 15. cxd5 {[%emt 0:01:17]} fxg3 {[%emt 0:05:36]} 16. hxg3 {[%emt 0:00:24]} Bxc3 {[%emt 0:06:09]} 17. bxc3 {[%emt 0:00:23]} Bxd5 {[%emt 0:00:57]} 18. Bxd5 {[%emt 0:00:23]} exd5 {[%emt 0:00:04][%mdl 4096] Endgame. KRR-KRR} 19. Rfd1 {[%emt 0:00:33]} d4 {[%emt 0:03:54]} 20. cxd4 {[%emt 0:06:08]} cxd4 {[%emt 0:00:12]} 21. Rxd4 {[%emt 0:00:12]} O-O 22. Rg4+ {[%emt 0:00:30]} Kh8 {[#]} 23. Rga4 $1 {[%emt 0:00:30]} Rab8 24. R1a3 {[%emt 0:00:30]} ({Weaker is} 24. Rxa7 Rxb3 25. Rd7 Kg7 $11) 24... Rfc8 (24... Kg7 {was necessary.} 25. Rxa7 h5) 25. Rxa7 $18 {[%emt 0:00:30]} Kg7 26. Rd7 {[%emt 0:00:30]} Rc3 27. Raa7 {[%emt 0:00:30]} Rf8 28. Rab7 {[%emt 0:00:30] Black did not feel at home in the position after the opening.   Weighted Error Value: White=0.05 (flawless) /Black=0.21 (precise) .  Mistake:       	---       	Black=3      Inaccurate:     	White=1     	Black=1      OK:         	White=12    	Black=5      Best:        	White=1     	---} 1-0

[Event "Ostravsky Konik FIDE-A 2024"]
[Site "Ostrava"]
[Date "2024.05.02"]
[Round "6.6"]
[White "Decuigniere, Tom"]
[Black "Sobek, Jaroslav"]
[Result "1-0"]
[ECO "E07"]
[WhiteElo "2401"]
[BlackElo "2201"]
[Annotator "TA"]
[PlyCount "55"]
[EventDate "2024.04.26"]
[EventType "swiss"]
[EventCountry "CZE"]
[SourceTitle "playchess.com"]
[Source "ChessBase"]
[SourceQuality "1"]
[TimeControl "40/5400+30:1800+30"]

{[%evp 17,55,0,13,2,15,11,14,9,3,0,12,2,11,-62,0,-3,0,-5,36,35,97,85,96,88,114,120,154,173,261,296,400,371,524,523,640,609,914,972,878,916]} 1. d4 {[%emt 1:31:00]} d5 {[%emt 1:31:00]} 2. c4 {[%emt 0:00:30]} e6 {[%emt 0:00:30]} 3. Nc3 {[%emt 0:00:30]} Nf6 {[%emt 0:00:30]} 4. Nf3 {[%emt 0:00:30]} Be7 {[%emt 0:00:30]} 5. g3 {[%emt 0:00:30]} c6 6. Bg2 O-O 7. O-O Nbd7 8. Qd3 b6 9. cxd5 {[%emt 0:02:00]} exd5 {[%emt 0:02:30]} 10. Bf4 {[%emt 0:00:30]} Bb7 {[%emt 0:00:30]} 11. Rfd1 {[%emt 0:00:30]} Re8 {[%emt 0:00:30]} 12. Rac1 {[%emt 0:00:30] The position is equal.} Bf8 {[%emt 0:00:30]} 13. Qb1 {[%emt 0:00:30]} a5 {[%emt 0:00:30]} 14. Ne5 {[%emt 0:00:30]} Nxe5 {[%emt 0:00:30]} 15. dxe5 {[%emt 0:00:30]} (15. Bxe5 $11 g6 16. e4) 15... Nh5 {[%emt 0:00:30]} (15... Ng4 $15) 16. Qd3 $11 {[%emt 0:00:30]} Nxf4 {[%emt 0:00:30]} 17. gxf4 Qh4 {[%emt 0:00:30]} 18. Qg3 {[%emt 0:01:00]} Qh5 {[%emt 0:00:30]} (18... Qd8 $14) 19. e4 {[%emt 0:00:30]} d4 {[%emt 0:00:30]} 20. Rxd4 {[%emt 0:00:30][%cal Bd1d4,Bd4d7,Bd7c7][%mdl 32]} b5 {[%emt 0:00:30][%cal Bb6b5,Bb5b4][%mdl 32]} 21. Rd7 {[%emt 0:00:30]} Bc8 {[%emt 0:00:30]} 22. Rc7 {[%emt 0:00:30] White is much more active.} Ra6 {[%emt 0:00:30]} (22... Qh6 $142 23. Nd1 c5) 23. f5 $18 {[%emt 0:00:30][%cal Oe5e6] aiming for e6!} b4 {[%emt 0:00:30]} 24. Na4 {[%emt 0:00:30][%cal Bc3a4,Ba4c5,Bc5d3,Bd3f4][%mdl 32]} ({Not} 24. Nd5 cxd5 25. Rxc8 Ra8 26. Rxa8 (26. Bf3 Qh6 $18) 26... Rxa8 27. exd5 Re8 $18) 24... c5 {[%emt 0:00:30]} (24... Qh6 $142) 25. Nxc5 {[%emt 0:00:30] White is clearly winning.} Ra8 {[%emt 0:00:30]} 26. Nd3 {[%emt 0:00:30]} Ba6 {[%emt 0:00:30]} 27. Nf4 {[%emt 0:00:30]} Qh6 {[%emt 0:00:30]} 28. R1c6 {[%emt 0:00:30] Weighted Error Value: White=0.13 (very precise) /Black=0.53.  Mistake:       	White=1     	Black=4      Inaccurate:     	---       	Black=3      OK:         	White=6     	Black=4      Best:        	White=1     	---} 1-0

[Event "Ostravsky Konik FIDE-A 2024"]
[Site "Ostrava"]
[Date "2024.05.02"]
[Round "6.7"]
[White "Vesely, Martin"]
[Black "Sernecki, Franciszek"]
[Result "0-1"]
[ECO "D02"]
[WhiteElo "2027"]
[BlackElo "2342"]
[Annotator "TA"]
[PlyCount "50"]
[EventDate "2024.04.26"]
[EventType "swiss"]
[EventCountry "CZE"]
[SourceTitle "playchess.com"]
[Source "ChessBase"]
[SourceQuality "1"]
[TimeControl "40/5400+30:1800+30"]

{[%evp 11,50,15,24,23,17,-11,-10,-11,7,-15,-10,-44,-41,-32,-51,-38,-28,-41,-41,-30,-25,-35,0,-17,0,-246,-263,-347,-360,-480,-477,-470,-470,-540,-513,-589,-565,-565,-512,-604,-593]} 1. d4 {[%emt 0:12:34]} Nf6 {[%emt 0:00:23]} 2. Nf3 {[%emt 0:00:01]} e6 {[%emt 0:00:09]} 3. g3 {[%emt 0:00:17]} b5 {[%emt 0:01:09]} 4. Bg2 {[%emt 0:00:09]} d5 {[%emt 0:00:47]} 5. O-O {[%emt 0:00:29]} Nbd7 {[%emt 0:01:11]} 6. a4 {[%emt 0:01:40]} b4 {[%emt 0:00:33] [#]} 7. c4 $1 {[%emt 0:00:21]} bxc3 {[%emt 0:03:16]} 8. bxc3 {[%emt 0:01:03][%cal Oc3c4]} Ba6 {[%emt 0:06:03]} 9. Na3 {[%emt 0:12:10][%cal Oc3c4] The position is equal.} Be7 {[%emt 0:29:28]} 10. Bf4 {[%emt 0:11:45]} c6 {[%emt 0:05:07] Prevents Nb5} 11. Nd2 {[%emt 0:07:47]} O-O {[%emt 0:08:52]} 12. Re1 {[%emt 0:07:32]} Rc8 {[%emt 0:03:49]} 13. e4 {[%emt 0:00:46]} dxe4 {[%emt 0:00:54]} 14. Nxe4 {[%emt 0:01:42]} Nxe4 {[%emt 0:00:08]} 15. Bxe4 {[%emt 0:00:35]} Nf6 {[%emt 0:01:31]} 16. Bf3 {[%emt 0:03:38]} Bd6 {[%emt 0:03:56]} 17. Bd2 {[%emt 0:16:55]} Rb8 {[%emt 0:05:41]} 18. Bxc6 $2 {[%emt 0:01:56] [#]} (18. Bg5 $11) 18... Bxa3 $1 $19 {[%emt 0:00:41]} 19. Rxa3 {[%emt 0:05:08][%cal Oc6b5] [#]} Qd6 $1 {[%emt 0:00:06][%csl LRa3,LRc6]} 20. Bf4 {[%emt 0:07:47]} Qxa3 {[%emt 0:00:19] Black is clearly winning.} 21. Bxb8 {[%emt 0:00:06]} Rxb8 {[%emt 0:00:15]} 22. Qf3 {[%emt 0:00:52]} h6 {[%emt 0:02:19]} 23. h3 {[%emt 0:02:03]} Bc4 {[%emt 0:01:05]} 24. Qf4 {[%emt 0:01:02]} Qb3 {[%emt 0:01:49]} 25. Bb5 {[%emt 0:01:00]} Rc8 {[%emt 0:00:26] Weighted Error Value: White=0.56/Black=0.11 (very precise) .  Loses game:     	White=1     	---        Inaccurate:     	White=4     	Black=1      OK:         	White=4     	Black=8      Strong:       	---       	Black=2} 0-1

[Event "Ostravsky Konik FIDE-A 2024"]
[Site "Ostrava"]
[Date "2024.05.03"]
[Round "7.1"]
[White "Nguyen, Piotr"]
[Black "Bujnoch, Radek"]
[Result "1-0"]
[ECO "E01"]
[WhiteElo "2398"]
[BlackElo "2307"]
[Annotator "TA"]
[PlyCount "71"]
[EventDate "2024.04.26"]
[EventType "swiss"]
[EventCountry "CZE"]
[SourceTitle "playchess.com"]
[Source "ChessBase"]
[SourceQuality "1"]
[TimeControl "40/5400+30:1800+30"]

{[%evp 15,71,0,0,0,0,0,0,0,0,0,18,41,34,35,15,13,33,18,41,0,68,62,126,116,97,59,60,44,38,116,93,112,91,30,516,514,541,439,430,437,433,433,802,245,327,327,1517,1332,1508,1490,1470,1387,1168,1110,29982,29983,29979,29977]} 1. Nf3 {[%emt 0:00:07]} d5 {[%emt 0:00:06]} 2. d4 {[%emt 0:00:05]} Nf6 {[%emt 0:00:07]} 3. c4 {[%emt 0:00:06]} c6 {[%emt 0:00:06]} 4. Nc3 {[%emt 0:00:09]} e6 {[%emt 0:00:10]} 5. g3 {[%emt 0:00:14]} dxc4 {[%emt 0:00:51]} 6. Bg2 {[%emt 0:00:07]} Nbd7 {[%emt 0:00:30]} 7. O-O {[%emt 0:00:09]} b5 {[%emt 0:00:40]} 8. e4 {[%emt 0:00:22][%cal Be2e4,Be4e5][%mdl 32]} Bb7 {[%emt 0:02:18]} 9. e5 {[%emt 0:00:15]} Nd5 {[%emt 0:00:28]} 10. Ng5 {[%emt 0:00:11] Qh5 would now be deadly.} h6 {[%emt 0:00:24]} 11. Nxe6 {[%emt 0:00:10] The position is equal.} fxe6 {[%emt 0:00:08]} 12. Qh5+ $40 {[%emt 0:00:04][%mdl 128] White has some attack.} Ke7 {[%emt 0:00:20]} 13. Ne4 $1 {[%emt 0:00:29] And now Nd6 would win.} Qe8 {[%emt 0:00:15]} 14. Bg5+ {[%emt 0:00:11]} hxg5 {[%emt 0:00:07]} 15. Qxh8 {[%emt 0:00:06][%cal Oe4d6] Strongly threatening Nd6!} Kd8 $1 {[%emt 0:00:42]} 16. Nxg5 {[%emt 0:00:28]} Qe7 {[%emt 0:00:10]} 17. Qh5 {[%emt 0:00:33][%mdl 1024] White has compensation.} Kc7 {[%emt 0:08:07]} (17... N7b6 $1 $11) 18. a4 $14 {[%emt 0:05:40]} a6 {[%emt 0:02:02]} (18... c5 $14) 19. Qg6 {[%emt 0:15:56]} Re8 {[%emt 0:00:35]} 20. Bh3 {[%emt 0:02:48]} Kb8 {[%emt 0:01:19]} (20... c5 $2 21. Nxe6+ Kb8 22. axb5 axb5 23. Ra5 cxd4 24. Rxb5 $18) 21. Nxe6 {[%emt 0:02:06]} Nc7 $1 {[%emt 0:06:27]} 22. Nxc7 {[%emt 0:08:02]} Kxc7 {[%emt 0:00:06]} 23. axb5 {[%emt 0:01:04]} axb5 {[%emt 0:00:34] [#]} 24. Rfe1 {[%emt 0:05:18] White has more active pieces.} (24. Ra7 $1 $16) 24... Ra8 $2 {[%emt 0:08:03][%mdl 8192] Against b3. This costs Black the game.} (24... Rd8 $1 $11 {and Black has nothing to worry.}) 25. Rxa8 $18 {[%emt 0:10:55]} Bxa8 {[%emt 0:00:09]} 26. Re4 {[%emt 0:08:12][%cal Be1e4,Be4f4,Bf4f7,Bf7d7,Bd7d8][%mdl 32] aiming for Rf4.} c5 {[%emt 0:21:53]} 27. Rf4 {[%emt 0:00:32]} Bd5 {[%emt 0:00:23] Against Rf7} 28. Qa6 {[%emt 0:19:00] Qa7+ is the strong threat.} cxd4 {[%emt 0:19:26]} (28... Bb7 $142 29. Qg6 (29. Qxb5 g5 $18) 29... Bd5 30. Bxd7 Kxd7 31. Qf5+ Kc7) 29. Qxb5 $2 {[%emt 0:09:02]} (29. Qa7+ Bb7 30. Rxd4 (30. Qxd4 g5 $11) (30. Bxd7 Qxe5 31. Bh3 Bc5 $18)) 29... Nb6 {[%emt 0:09:53] [#] Threatens to win with ...Qc5.} 30. e6 $1 {[%emt 0:02:00]} (30. Rxd4 Qxe5 31. Rf4 Bd6 $15) 30... Qc5 $2 {[%emt 0:13:27]} ({But not} 30... c3 $2 31. bxc3 (31. Rxd4 $2 {is the wrong capture.} c2 $19) (31. Rf7 Qxf7 32. exf7 c2 $16) 31... Qa3 32. Rf7+ (32. Rxd4 Bd6 $18) (32. cxd4 Be7 $18) 32... Be7 33. Qe8 $18 (33. cxd4 Bc4 $18) (33. Rxg7 dxc3 34. Qd3 Kd6 $11)) (30... Bxe6 31. Qe5+ Qd6 32. Qxe6 Qxe6 33. Bxe6 Bc5) 31. Rf7+ {[%emt 0:00:29]} Kd6 {[%emt 0:00:17][%cal Bc7d6,Bd6c5,Bc5b5][%mdl 32]} 32. Qe8 {[%emt 0:02:23]} Qc8 {[%emt 0:02:17]} 33. Rd7+ {[%emt 0:02:36]} (33. Qxf8+ Qxf8 34. Rxf8 Bxe6 35. Bxe6 Kxe6 $18) 33... Kc5 {[%emt 0:00:29]} 34. Rd8 {[%emt 0:07:41]} Qa6 {[%emt 0:04:41]} 35. Qxf8+ {[%emt 0:00:00]} Kb5 {[%emt 0:00:30]} 36. e7 {[%emt 0:00:00] Weighted Error Value: White=0.31/Black=0.59.  Loses game:     	---       	Black=1      Mistake:       	White=2     	Black=4      Inaccurate:     	White=2     	Black=1      OK:         	White=9     	Black=6      Best:        	White=5     	Black=3      Strong:       	White=1     	Black=2} 1-0